Workbook

Sheet Лист1
I1: К постановлению Администрации Североуральского городского округа от 27.11.2017 № 1244
A2: Приложение № 2 к муниципальной программе Североуральского городского округа «Развитие жилищно-коммунального хозяйства и транспортного обслуживания населения, повышение энергетической эффективности и охрана окружающей среды в Североуральском городском округе» на 2014-2020 годы
A3: План мероприятий
A4: по выполнению муниципальной программы Североуральского городского округа
A5: «Развитие жилищно-коммунального хозяйства и транспортного обслуживания населения,
A6: повышение энергетической эффективности и охрана окружающей среды в Североуральском городском округе» на 2014-2020 годы
A8: № строки | B8: Наименование мероприятия/ Источники расходов на финансирование | C8: Объем расходов на выполнение мероприятия за счет всех источников ресурсного обеспечения, тыс. руб. | K8: Номер строки целевых показателей, на достижение которых направлены мероприятия
C9: Всего | D9: 2014 год | E9: 2015 год | F9: 2016 год | G9: 2017 год | H9: 2018 год | I9: 2019 год | J9: 2020 год
B10: 1 | C10: 2 | D10: 3 | E10: 4 | F10: 5 | G10: 6 | H10: 7 | I10: 8 | J10: 9 | K10: 10
A11: 1. | B11: ВСЕГО по муниципальной программе, в том числе: | C11: =SUM(D11:J11) -> 1179778.553 | D11: =SUM(D12+D15+D16+D17) -> 283826.9 | E11: 348239.16 | F11: 216622.5876 | G11: 121145.4059 | H11: 81381 | I11: 64762.4 | J11: 63801.1 | K11: Х
A12: 1.1. | B12: местный бюджет, в т.ч.: | C12: =SUM(D12:J12) -> 639102.6448 | D12: =SUM(D13:D14) -> 92792.8 | E12: 126635.26 | F12: 117147.5734 | G12: 94516.71142 | H12: 80408.1 | I12: 63801.1 | J12: 63801.1
B13: - местный бюджет | C13: 638907.3792 | D13: =SUM(D19+D24) -> 92792.8 | E13: 126635.26 | F13: 117147.5734 | G13: 94321.44582 | H13: 80408.1 | I13: 63801.1 | J13: 63801.1
B14: - средства заинтересованных лиц | C14: 195.2656 | D14: =SUM(D25) -> 0 | E14: 0 | F14: 0 | G14: 195.2656 | H14: 0 | I14: 0 | J14: 0
A15: 1.2. | B15: областной бюджет | C15: 353219.6381 | D15: =SUM(D20+D26) -> 109216.1 | E15: 135104.3 | F15: 81477.35126 | G15: 25487.68685 | H15: 972.9 | I15: 961.3 | J15: 0
A16: 1.3. | B16: федеральный бюджет | C16: 187456.2705 | D16: =SUM(D27+D21) -> 81818 | E16: 86499.6 | F16: 17997.66293 | G16: 1141.00759 | H16: 0 | I16: 0 | J16: 0 | N16: =SUM(G12:G16) -> 215662.1173
A17: 1.4. | B17: внебюджетные источники | C17: 0 | D17: 0 | E17: 0 | F17: 0 | G17: 0 | H17: 0 | I17: 0 | J17: 0
A18: 2. | B18: Капитальные вложения | C18: =SUM(C19:C21) -> 657522.941 | D18: =SUM(D19:D21) -> 232761.9 | E18: =SUM(E19:E21) -> 271669 | F18: 133207.8847 | G18: 16137.35632 | H18: 3746.8 | I18: 0 | J18: 0 | K18: Х
A19: 2.1. | B19: местный бюджет | C19: =SUM(D19:J19) -> 140918.5572 | D19: =D36+D129+D201+D221+D252+D287+D356+D375 -> 44727.8 | E19: =E36+E129+E201+E221+E252+E287+E356+E375 -> 50411.3 | F19: =F36+F129+F201+F221+F252+F287+F356+F375 -> 34707.97051 | G19: =G36+G129+G201+G221+G252+G287+G356+G375+G411 -> 7324.68673 | H19: =H36+H129+H201+H221+H252+H287+H356+H375 -> 3746.8 | I19: =I36+I129+I201+I221+I252+I287+I356+I375 -> 0 | J19: =J36+J129+J201+J221+J252+J287+J356+J375 -> 0
A20: 2.2. | B20: областной бюджет | C20: 329148.1133 | D20: =D130+D222+D37 -> 106216.1 | E20: =E130+E222+E37 -> 134758.1 | F20: =F130+F222 -> 80502.25126 | G20: =G130+G222 -> 7671.662 | H20: =H130+H222 -> 0 | I20: =I130+I222 -> 0 | J20: =J130+J222 -> 0
A21: 2.3. | B21: федеральный бюджет | C21: 187456.2705 | D21: =D223 -> 81818 | E21: =E223 -> 86499.6 | F21: 17997.66293 | G21: 1141.00759 | H21: 0 | I21: 0 | J21: 0
A22: 3. | B22: Прочие нужды | C22: 728984.1753 | D22: =SUM(D23:D26) -> 99130 | E22: =SUM(E23:E26) -> 152794.12 | F22: =SUM(F23:F26) -> 165854.3058 | G22: =SUM(G28+G27+G26+G23) -> 105008.0495 | H22: =SUM(H28+H27+H26+H23) -> 77634.2 | I22: =SUM(I28+I27+I26+I23) -> 64762.4 | J22: =SUM(J28+J27+J26+J23) -> 63801.1 | K22: Х
A23: 3.1. | B23: местный бюджет, в т.ч.: | C23: =SUM(D23:J23) -> 498184.0876 | D23: =D51+D175+D210+D239+D296+D365+D391+D261+D344 -> 48065 | E23: =E51+E175+E210+E239+E296+E365+E391+E261+E344 -> 76223.96 | F23: =F51+F175+F210+F239+F296+F365+F391+F261+F344 -> 82439.60288 | G23: =SUM(G24:G25) -> 87192.02469 | H23: =H51+H175+H210+H239+H296+H365+H391+H261+H344 -> 76661.3 | I23: =I51+I175+I210+I239+I296+I365+I391+I261+I344 -> 63801.1 | J23: =J51+J175+J210+J239+J296+J365+J391+J261+J344 -> 63801.1
B24: - местный бюджет | C24: 497988.822 | D24: =SUM(D51+D175+D210+D239+D261+D296+D344+D365+D391+D427) -> 48065 | E24: 76223.96 | F24: 82439.60288 | G24: 86996.75909 | H24: 76661.3 | I24: 63801.1 | J24: 63801.1
B25: - средства заинтересованных лиц | C25: 195.2656 | D25: =SUM(D428) -> 0 | E25: 0 | F25: 0 | G25: 195.2656 | H25: 0 | I25: 0 | J25: 0
A26: 3.2. | B26: областной бюджет | C26: =SUM(D26:J26) -> 24071.52485 | D26: =SUM(D176+D390+D52+D262+D429) -> 3000 | E26: 346.2 | F26: 975.1 | G26: 17816.02485 | H26: 972.9 | I26: 961.3 | J26: 0
A27: 3.3. | B27: федеральный бюджет | C27: 0 | D27: 0 | E27: =E176 -> 0 | F27: 0 | G27: 0 | H27: 0 | I27: 0 | J27: 0
A28: 3.4. | B28: внебюджетные источники | C28: =SUM(#REF!) ->  | D28: 0 | E28: 0 | F28: 0 | G28: 0 | H28: 0 | I28: 0 | J28: 0
A29: 4. | B29: Подпрограмма 1: Комплексное благоустройство территории Североуральского городского округа
A30: 4.1. | B30: Всего по подпрограмме 1, | C30: =SUM(C32+C33) -> 188297.6136 | D30: =SUM(D32:D33) -> 25725.2 | E30: 29762.2 | F30: 47222.84145 | G30: 34289.57214 | H30: 21980 | I30: 5241.3 | J30: 24076.5 | K30: Х
B31: в том числе:
A32: 4.2. | B32: местный бюджет | C32: =SUM(D32:J32) -> 179592.2136 | D32: =SUM(D36+D51) -> 24510.5 | E32: 26102.3 | F32: 46247.74145 | G32: =SUM(G36+G51) -> 33326.07214 | H32: 21028.1 | I32: 4301 | J32: 24076.5
A33: 4.3. | B33: областной бюджет | C33: =SUM(D33:J33) -> 8705.4 | D33: 1214.7 | E33: 3659.9 | F33: 975.1 | G33: 963.5 | H33: 951.9 | I33: 940.3 | J33: 0
A34: 5. | B34: 1. Капитальные вложения
A35: 5.1. | B35: Всего по направлению «Капитальные вложения» всего, в том числе | C35: =SUM(D35:J35) -> 19351.9 | D35: =SUM(D36+D37) -> 3536.4 | E35: =SUM(E36+E37) -> 3674.7 | F35: =SUM(F36) -> 4819 | G35: =SUM(G36) -> 3575 | H35: =SUM(H36) -> 3746.8 | I35: =SUM(I36) -> 0 | J35: =SUM(J36) -> 0 | K35: Х
A36: 5.2. | B36: местный бюджет | C36: =SUM(D36:J36) -> 14823.5 | D36: =SUM(D47) -> 2321.7 | E36: =SUM(E47) -> 361 | F36: =SUM(F47) -> 4819 | G36: =SUM(G40+G43) -> 3575 | H36: 3746.8 | I36: 0 | J36: 0
A37: 5.3. | B37: областной бюджет | C37: =SUM(D37:J37) -> 4528.4 | D37: =SUM(D44) -> 1214.7 | E37: =SUM(E44) -> 3313.7 | F37: 0 | G37: =SUM(G44) -> 0 | H37: 0 | I37: 0 | J37: 0
A38: 6. | B38: 1.1. Бюджетные инвестиции в объекты капитального строительства
A39: 6.1. | B39: Бюджетные инвестиции в объекты капитального строительства всего, в том числе | C39: 0 | D39: 0 | E39: 0 | F39: 0 | G39: 0 | H39: 0 | I39: 0 | J39: 0 | K39: Х
A40: 6.2. | B40: местный бюджет | C40: 0 | D40: 0 | E40: 0 | F40: 0 | G40: 0 | H40: 0 | I40: 0 | J40: 0
A41: 7. | B41: 1.2. Иные капитальные вложения
A42: 7.1. | B42: Всего | C42: =SUM(D42:J42) -> 19351.9 | D42: =SUM(D43:D44) -> 3536.4 | E42: =SUM(E43:E44) -> 3674.7 | F42: 4819 | G42: 3575 | H42: 3746.8 | I42: 0 | J42: 0 | K42: Х
A43: 7.2. | B43: местный бюджет | C43: =SUM(D43:J43) -> 14823.5 | D43: =SUM(D47) -> 2321.7 | E43: 361 | F43: 4819 | G43: 3575 | H43: 3746.8 | I43: 0 | J43: 0
A44: 7.3. | B44: областной бюджет | C44: =SUM(D44:J44) -> 4528.4 | D44: =SUM(D48) -> 1214.7 | E44: =SUM(E48) -> 3313.7 | F44: 0 | G44: =SUM(G48) -> 0 | H44: 0 | I44: 0 | J44: 0
A45: 8. | B45: Мероприятие 1 Благоустройство дворовых территорий Североуральского городского округа
A46: 8.1. | B46: Всего, из них | C46: =SUM(D46:J46) -> 19351.9 | D46: =D47+D48 -> 3536.4 | E46: =SUM(E47:E48) -> 3674.7 | F46: =SUM(F47) -> 4819 | G46: =SUM(G47) -> 3575 | H46: =SUM(H47) -> 3746.8 | I46: =SUM(I47) -> 0 | J46: =SUM(J47) -> 0 | K46: стр. 4
A47: 8.2. | B47: местный бюджет | C47: =SUM(D47:J47) -> 14823.5 | D47: 2321.7 | E47: 361 | F47: 4819 | G47: 3575 | H47: 3746.8 | I47: 0 | J47: 0
A48: 8.3. | B48: областной бюджет | C48: =D48+E48+F48+G48+H48+I48+J48 -> 4528.4 | D48: 1214.7 | E48: 3313.7 | F48: 0 | G48: 0 | H48: 0 | I48: 0 | J48: 0
A49: 9. | B49: 3. Прочие нужды
A50: 9.1. | B50: Всего по направлению «Прочие нужды», всего, в том числе: | C50: =SUM(D50:J50) -> 168945.7136 | D50: =SUM(D51:D52) -> 22188.8 | E50: 26087.5 | F50: 42403.84145 | G50: 30714.57214 | H50: 18233.2 | I50: 5241.3 | J50: 24076.5 | K50: Х | N50: =SUM(E47+E55) -> 797
A51: 9.2. | B51: местный бюджет | C51: =SUM(D51:J51) -> 164768.7136 | D51: =SUM(D62+D71+D74+D77+D55+D121) -> 22188.8 | E51: =SUM(E62+E71+E74+E77+E55+E121) -> 25741.3 | F51: =SUM(F62+F71+F74+F77+F55+F121) -> 41428.74145 | G51: 29751.07214 | H51: 17281.3 | I51: 4301 | J51: 24076.5
A52: 9.3. | B52: областной бюджет | C52: =SUM(D52:J52) -> 4177 | D52: =SUM(D78) -> 0 | E52: =SUM(E78) -> 346.2 | F52: =SUM(F122) -> 975.1 | G52: =SUM(G122) -> 963.5 | H52: =SUM(H122) -> 951.9 | I52: =SUM(I122) -> 940.3 | J52: =SUM(J122) -> 0
A53: 10. | B53: Мероприятие 1 Благоустройство дворовых территорий Североуральского городского округа
A54: 10.1. | B54: Всего, из них | C54: =SUM(D54:J54) -> 3927.9 | D54: =D55+D56 -> 310.9 | E54: =SUM(E55) -> 436 | F54: 2681 | G54: 500 | H54: 0 | I54: 0 | J54: 0 | K54: стр. 4
A55: 10.2. | B55: местный бюджет | C55: =SUM(D55:J55) -> 3927.9 | D55: 310.9 | E55: 436 | F55: 2681 | G55: 500 | H55: 0 | I55: =SUM(H55) -> 0 | J55: =SUM(I55) -> 0
A56: 10.3. | B56: областной бюджет | C56: =D56+E56+F56+G56+H56+I56+J56 -> 0 | D56: 0 | E56: 0 | F56: 0 | G56: 0 | H56: 0 | I56: 0 | J56: 0
A57: 11. | B57: Мероприятие 2 Благоустройство парков и скверов в городе Североуральске
A58: 11.1. | B58: Всего, из них | C58: =SUM(D58:J58) -> 0 | D58: =D59+D60 -> 0 | E58: =SUM(E59) -> 0 | F58: 0 | G58: 0 | H58: 0 | I58: 0 | J58: 0 | K58: Х
A59: 11.2. | B59: местный бюджет | C59: =SUM(D59:J59) -> 0 | D59: 0 | E59: 0 | F59: 0 | G59: 0 | H59: =SUM(G59) -> 0 | I59: =SUM(H59) -> 0 | J59: =SUM(I59) -> 0
A60: 12. | B60: Мероприятие 3- Уличное освещение
A61: 12.1. | B61: Всего, в том числе: | C61: =SUM(D61:J61) -> 77456.4908 | D61: =SUM(D62) -> 12001 | E61: 12600 | F61: 18150.6908 | G61: 15100 | H61: 6404.8 | I61: 0 | J61: 13200 | K61: стр.8. с 2017 года стр. 9
A62: 12.2. | B62: местный бюджет | C62: =SUM(D62:J62) -> 77456.4908 | D62: =SUM(D65+D68) -> 12001 | E62: 12600 | F62: 18150.6908 | G62: 15100 | H62: 6404.8 | I62: 0 | J62: 13200
A63: 12.3. | B63: - Обеспечение бесперебойной подачи электроэнергии
A64: 12.4. | B64: Всего: | C64: =SUM(D64:J64) -> 51209.5908 | D64: =SUM(D65) -> 8644.1 | E64: =SUM(E65) -> 8800 | F64: 10660.6908 | G64: 11500 | H64: 2404.8 | I64: 0 | J64: 9200 | K64: стр.8. с 2017 года стр. 9
A65: 12.5. | B65: местный бюджет | C65: =SUM(D65:J65) -> 51209.5908 | D65: 8644.1 | E65: 8800 | F65: 10660.6908 | G65: 11500 | H65: 2404.8 | I65: 0 | J65: 9200
A66: 12.6. | B66: - Содержание и ремонт сетей уличного освещения
A67: 12.7. | B67: Всего: | C67: =SUM(D67:J67) -> 26246.9 | D67: =SUM(D68) -> 3356.9 | E67: =SUM(E68) -> 3800 | F67: 7490 | G67: 3600 | H67: 4000 | I67: 0 | J67: 4000 | K67: стр.8. с 2017 года стр. 9
A68: 12.8. | B68: местный бюджет | C68: =SUM(D68:J68) -> 26246.9 | D68: 3356.9 | E68: 3800 | F68: 7490 | G68: 3600 | H68: 4000 | I68: 0 | J68: 4000
A69: 13. | B69: Мероприятие 4 - Озеленение (цветники, валка сухих деревьев)
A70: 13.1. | B70: Всего, из них | C70: =SUM(D70:J70) -> 20242.94386 | D70: =SUM(D71) -> 2890.9 | E70: 2148 | F70: 3923.84386 | G70: 3235 | H70: 3302.5 | I70: 1440.2 | J70: 3302.5 | K70: стр.11
A71: 13.2. | B71: местный бюджет | C71: =SUM(D71:J71) -> 20242.94386 | D71: 2890.9 | E71: 2148 | F71: 3923.84386 | G71: 3235 | H71: 3302.5 | I71: 1440.2 | J71: 3302.5
A72: 14. | B72: Мероприятие 5 - Организация и содержание мест захоронения
A73: 14.1. | B73: Всего, из них | C73: =SUM(D73:J73) -> 19733.49851 | D73: =SUM(D74) -> 2263.1 | E73: 2306.9 | F73: 3619.44212 | G73: 2961.65639 | H73: 2860.8 | I73: 2860.8 | J73: 2860.8 | K73: стр.16
A74: 14.2. | B74: местный бюджет | C74: =SUM(D74:J74) -> 19733.49851 | D74: 2263.1 | E74: 2306.9 | F74: 3619.44212 | G74: 2961.65639 | H74: 2860.8 | I74: =SUM(H74) -> 2860.8 | J74: =SUM(I74) -> 2860.8
A75: 15. | B75: Мероприятие 6 - Прочие мероприятия по благоустройству
A76: 15.1. | B76: Всего, в том числе: | C76: =SUM(D76:J76) -> 42807.28042 | D76: =SUM(D77:D78) -> 4722.9 | E76: =SUM(E77:E78) -> 8596.6 | F76: 12256.96467 | G76: 7804.41575 | H76: 4713.2 | I76: 0 | J76: 4713.2 | K76: стр.5,5.1.,6,11,13,14,15,17
A77: 15.2. | B77: местный бюджет | C77: =SUM(D77:J77) -> 42461.08042 | D77: =SUM(D81+D84+D91+D94+D103+D97+D106+D112+D100+D109+D87) -> 4722.9 | E77: =SUM(E81+E84+E91+E94+E103+E97+E106+E112+E100+E109+E87+E115) -> 8250.4 | F77: =SUM(F81+F84+F91+F94+F103+F97+F106+F112+F100+F109+F87+F115) -> 12256.96467 | G77: =SUM(G81+G84+G91+G94+G103+G97+G106+G112+G100+G109+G87+G115+G118) -> 7804.41575 | H77: =SUM(H81+H84+H91+H94+H103+H97+H106+H112+H100+H109+H87+H115+H118) -> 4713.2 | I77: 0 | J77: 4713.2
A78: 15.3. | B78: областной бюджет | C78: =SUM(D78:J78) -> 346.2 | D78: =SUM(D88) -> 0 | E78: =SUM(E88) -> 346.2 | F78: 0 | G78: 0 | H78: 0 | I78: 0 | J78: 0
A79: 15.4. | B79: - Содержание памятников
A80: 15.5. | B80: Всего: | C80: =SUM(C81) -> 2506.85888 | D80: 369.2 | E80: 404.9 | F80: 384.30006 | G80: 466.45882 | H80: 441 | I80: 0 | J80: 441 | K80: стр. 17
A81: 15.6. | B81: местный бюджет | C81: =SUM(D81:J81) -> 2506.85888 | D81: 369.2 | E81: 404.9 | F81: 384.30006 | G81: 466.45882 | H81: 441 | I81: 0 | J81: 441
A82: 15.7. | B82: - Проведение комплекса профилактических работ по уходу за объектами благоустройства
A83: 15.8. | B83: Всего: | C83: =SUM(C84) -> 6647.89973 | D83: =SUM(D84) -> 1098.7 | E83: =SUM(E84) -> 976.1 | F83: 999.8138 | G83: 1147.68593 | H83: 1212.8 | I83: 0 | J83: 1212.8 | K83: стр. 5
A84: 15.9. | B84: местный бюджет | C84: =SUM(D84:J84) -> 6647.89973 | D84: 1098.7 | E84: 976.1 | F84: 999.8138 | G84: 1147.68593 | H84: 1212.8 | I84: 0 | J84: 1212.8
A85: 15.10. | B85: - Регулирование численности безнадзорных животных
A86: 15.11. | B86: Всего: | C86: =SUM(D86:J86) -> 1677.2 | D86: =SUM(D87:D88) -> 500 | E86: =SUM(E87:E88) -> 1177.2 | F86: 0 | G86: 0 | H86: 0 | I86: 0 | J86: 0 | K86: стр. 13
A87: 15.12. | B87: местный бюджет | C87: =SUM(D87:J87) -> 1331 | D87: 500 | E87: 831 | F87: 0 | G87: 0 | H87: 0 | I87: =SUM(H87) -> 0 | J87: =SUM(I87) -> 0
A88: 15.13. | B88: областной бюджет | C88: =SUM(D88:J88) -> 346.2 | E88: 346.2
A89: 15.14. | B89: - Содержание биоямы (скотомогильник)
A90: 15.15. | B90: Всего: | C90: =SUM(C91) -> 667.98218 | D90: =SUM(D91) -> 116.1 | E90: =SUM(E91) -> 69.3 | F90: 77.02912 | G90: 74.75306 | H90: 165.4 | I90: 0 | J90: 165.4 | K90: стр.15
A91: 15.16. | B91: местный бюджет | C91: =SUM(D91:J91) -> 667.98218 | D91: 116.1 | E91: 69.3 | F91: 77.02912 | G91: 74.75306 | H91: 165.4 | I91: 0 | J91: 165.4
A92: 15.17. | B92: - Обустройство и эксплуатация новогодних городков
A93: 15.18. | B93: Всего: | C93: =SUM(C94) -> 15081.9 | D93: =SUM(D94) -> 1685.5 | E93: =SUM(E94) -> 2669.2 | F93: 2900 | G93: 3120 | H93: 2353.6 | I93: 0 | J93: 2353.6 | K93: стр.5
A94: 15.19. | B94: местный бюджет | C94: =SUM(D94:J94) -> 15081.9 | D94: 1685.5 | E94: 2669.2 | F94: 2900 | G94: 3120 | H94: 2353.6 | I94: 0 | J94: 2353.6
A95: 15.20. | B95: - Приобретение декоративного освещения для улиц города Североуральска
A96: 15.21. | B96: Всего: | C96: =SUM(C97) -> 2474.4 | D96: =SUM(D97) -> 773.4 | E96: =SUM(E97) -> 1701 | F96: 0 | G96: 0 | H96: 0 | I96: 0 | J96: 0 | K96: стр.5
A97: 15.22. | B97: местный бюджет | C97: =SUM(D97:J97) -> 2474.4 | D97: 773.4 | E97: 1701 | F97: 0 | G97: 0 | H97: 0 | I97: =SUM(H97) -> 0 | J97: =SUM(I97) -> 0
A98: 15.23. | B98: - Обслуживание декоративного освещения для улиц города Североуральска
A99: 15.24. | B99: Всего: | C99: =SUM(C100) -> 400 | D99: =SUM(D100) -> 0 | E99: =SUM(E100) -> 0 | F99: 0 | G99: 400 | H99: 0 | I99: 0 | J99: 0 | K99: стр.5
A100: 15.25. | B100: местный бюджет | C100: =SUM(D100:J100) -> 400 | D100: 0 | E100: 0 | F100: 0 | G100: 400 | H100: 0 | I100: =SUM(H100) -> 0 | J100: =SUM(I100) -> 0
A101: 15.26. | B101: - Акарицидная обработка общественных мест
A102: 15.27. | B102: Всего: | C102: =SUM(C103) -> 998.4899 | D102: =SUM(D103) -> 92 | E102: =SUM(E103) -> 99.9 | F102: 99.9899 | G102: 45 | H102: 330.8 | I102: 0 | J102: 330.8 | K102: стр.14
A103: 15.28. | B103: местный бюджет | C103: =SUM(D103:J103) -> 998.4899 | D103: 92 | E103: 99.9 | F103: 99.9899 | G103: 45 | H103: 330.8 | I103: 0 | J103: 330.8
A104: 15.29. | B104: - Приобретение грунта плодородного (земли садовой)
A105: 15.30. | B105: Всего: | C105: =SUM(C106) -> 756.2 | D105: =SUM(D106) -> 88 | E105: =SUM(E106) -> 0 | F105: 150 | G105: 99 | H105: 209.6 | I105: 0 | J105: 209.6 | K105: стр.11
A106: 15.31. | B106: местный бюджет | C106: =SUM(D106:J106) -> 756.2 | D106: 88 | E106: 0 | F106: 150 | G106: 99 | H106: 209.6 | I106: 0 | J106: 209.6
A107: 15.32. | B107: - Приобретение и установка металлических урн и скамеек
A108: 15.33. | B108: Всего: | C108: =SUM(C109) -> 1710.25802 | D108: =SUM(D109) -> 0 | E108: =SUM(E109) -> 0 | F108: 1710.25802 | G108: 0 | H108: 0 | I108: 0 | J108: 0 | K108: стр.6
A109: 15.34. | B109: местный бюджет | C109: =SUM(D109:J109) -> 1710.25802 | D109: 0 | E109: 0 | F109: 1710.25802 | G109: 0 | H109: 0 | I109: =SUM(H109) -> 0 | J109: =SUM(I109) -> 0
A110: 15.35. | B110: - Благоустройство мест общего пользования территории Североуральского городского округа
A111: 15.36. | B111: Всего: | C111: =SUM(C112) -> 9528.04171 | D111: =SUM(D112) -> 0 | E111: =SUM(E112) -> 1499 | F111: 5935.57377 | G111: 2093.46794 | H111: 0 | I111: 0 | J111: 0 | K111: стр.5
A112: 15.37. | B112: местный бюджет | C112: =SUM(D112:J112) -> 9528.04171 | D112: 0 | E112: 1499 | F112: 5935.57377 | G112: 2093.46794 | H112: 0 | I112: =SUM(H112) -> 0 | J112: =SUM(I112) -> 0
A113: 15.38. | B113: - Обустройство источника нецентрализованного водоснабжения в п. Сосьва
A114: 15.39. | B114: Всего: | C114: =SUM(C115) -> 58.05 | D114: =SUM(D115) -> 0 | E114: =SUM(E115) -> 0 | F114: 0 | G114: 58.05 | H114: 0 | I114: 0 | J114: 0 | K114: стр.5
A115: 15.40. | B115: местный бюджет | C115: =SUM(D115:J115) -> 58.05 | D115: 0 | E115: 0 | F115: 0 | G115: 58.05 | H115: 0 | I115: =SUM(H115) -> 0 | J115: =SUM(I115) -> 0
A116: 15.41. | B116: - Разработка проектно-сметной документации и проведение ценовой экспертизы скверов, парков и аллей Североуральского городского округа
A117: 15.42. | B117: Всего: | C117: =SUM(C118) -> 300 | D117: =SUM(D118) -> 0 | E117: =SUM(E118) -> 0 | F117: 0 | G117: 300 | H117: 0 | I117: 0 | J117: 0 | K117: стр.5.1.
A118: 15.43. | B118: местный бюджет | C118: =SUM(D118:J118) -> 300 | D118: 0 | E118: 0 | F118: 0 | G118: 300 | H118: 0 | I118: =SUM(H118) -> 0 | J118: =SUM(I118) -> 0
A119: 16. | B119: Мероприятие 7 - Регулирование численности безнадзорных животных
A120: 16.1. | B120: Всего, из них | C120: =SUM(D120:J120) -> 4777.6 | D120: =SUM(D121:D122) -> 0 | E120: =SUM(E121:E122) -> 0 | F120: 1771.9 | G120: 1113.5 | H120: 951.9 | I120: 940.3 | J120: 0 | K120: стр.13
A121: 16.2. | B121: местный бюджет | C121: =SUM(D121:J121) -> 946.8 | D121: 0 | E121: 0 | F121: 796.8 | G121: 150 | H121: 0 | I121: =SUM(H121) -> 0 | J121: =SUM(I121) -> 0
A122: 16.3. | B122: областной бюджет | C122: =SUM(D122:J122) -> 3830.8 | E122: 0 | F122: 975.1 | G122: 963.5 | H122: 951.9 | I122: 940.3
A123: 17. | B123: Подпрограмма 2: Муниципальная программа по энергосбережению и повышению энергетической эффективности объектов Североуральского городского округа
A124: 17.1. | B124: Всего по подпрограмме 2, в том числе | C124: =SUM(D124:J124) -> 89538.30978 | D124: =SUM(D125:D126) -> 9165.5 | E124: 2961.6 | F124: 15455.86781 | G124: 16404.34197 | H124: 21775.5 | I124: 21775.5 | J124: 2000 | K124: Х
A125: 17.2. | B125: местный бюджет | C125: =SUM(D125:J125) -> 83193.90978 | D125: =SUM(D129+D175) -> 2821.1 | E125: =SUM(E129+E175) -> 2961.6 | F125: =F129+F175 -> 15455.86781 | G125: =SUM(G129+G175) -> 16404.34197 | H125: 21775.5 | I125: 21775.5 | J125: 2000
A126: 17.3. | B126: областной бюджет | C126: =SUM(D126:J126) -> 6344.4 | D126: =SUM(D130+D176) -> 6344.4 | E126: =SUM(E130+E176) -> 0 | F126: =SUM(F130+F176) -> 0 | G126: 0 | H126: 0 | I126: 0 | J126: 0
A127: 18. | B127: 1. Капитальные вложения
A128: 18.1. | B128: Всего по направлению «Капитальные вложения», всего, в том числе | C128: =SUM(C129:C130) -> 22520.55117 | D128: 4173.6 | E128: 1420 | F128: 14122.6092 | G128: 2804.34197 | H128: 0 | I128: 0 | J128: 0 | K128: Х
A129: 18.2. | B129: местный бюджет | C129: =SUM(D129:J129) -> 19176.15117 | D129: =SUM(D163+D133) -> 829.2 | E129: 1420 | F129: 14122.6092 | G129: 2804.34197 | H129: 0 | I129: 0 | J129: 0
A130: 18.3. | B130: областной бюджет | C130: =SUM(D130:J130) -> 3344.4 | D130: =SUM(D164+D134) -> 3344.4 | E130: 0 | F130: 0 | G130: 0 | H130: 0 | I130: 0 | J130: 0
A131: 19. | B131: 1.1. Бюджетные инвестиции в объекты капитального строительства
A132: 19.1. | B132: Бюджетные инвестиции в объекты капитального строительства всего, в том числе | C132: =SUM(D132:J132) -> 16926.95117 | D132: =SUM(D133:D134) -> 0 | E132: =SUM(E133:E134) -> 0 | F132: 14122.6092 | G132: 2804.34197 | H132: 0 | I132: 0 | J132: 0 | K132: Х
A133: 19.2. | B133: местный бюджет | C133: =SUM(D133:J133) -> 16926.95117 | D133: =SUM(D137+D149+D152+D156+D159) -> 0 | E133: 0 | F133: 14122.6092 | G133: 2804.34197 | H133: 0 | I133: 0 | J133: 0
A134: 19.3. | B134: областной бюджет | C134: =SUM(D134:J134) -> 0 | D134: =SUM(D138+D153+D160) -> 0 | E134: =SUM(E138+E153+E160) -> 0 | F134: 0 | G134: 0 | H134: 0 | I134: 0 | J134: 0
A135: 20. | B135: Мероприятие 3 - Закупка и установка осветительного оборудования с заменой неэффективного на энергосберегающее, в том числе замена ламп накаливания на энергосберегающие, строительство, модернизация сетей уличного освещения, проектно-сметные работы, экспертиза проектно-сметной документации
A136: 20.1. | B136: Всего, из них | C136: =SUM(C137:C138) -> 14458.20066 | D136: =SUM(D137:D138) -> 0 | E136: =SUM(E137:E138) -> 0 | F136: 12330 | G136: 2128.20066 | H136: 0 | I136: 0 | J136: 0 | K136: стр.28
A137: 20.2. | B137: местный бюджет | C137: =SUM(D137:J137) -> 14458.20066 | D137: 0 | E137: 0 | F137: =SUM(F145+F141) -> 12330 | G137: =SUM(G145+G141) -> 2128.20066 | H137: 0 | I137: =SUM(H137) -> 0 | J137: 0
A138: 20.3. | B138: областной бюджет | C138: =SUM(D138:J138) -> 0 | D138: 0 | E138: 0 | F138: 0 | G138: 0 | H138: 0 | I138: 0 | J138: 0
A139: 20.4. | B139: - Разработка ПСД на строительство сетей уличного освещения микрорайона Южный
A140: 20.5. | B140: Всего: | C140: =SUM(C141) -> 283.20066 | D140: 0 | E140: 0 | F140: 283.20066 | G140: 0 | H140: 0 | I140: 0 | J140: 0 | K140: стр.28
A141: 20.6. | B141: местный бюджет | C141: =SUM(D141:J141) -> 283.20066 | D141: 0 | E141: 0 | F141: 283.20066 | G141: 0 | H141: 0 | I141: =SUM(H141) -> 0 | J141: =SUM(I141) -> 0
A142: 20.7. | B142: областной бюджет | C142: =SUM(D142:J142) -> 0 | D142: 0 | E142: 0 | F142: 0 | G142: 0 | H142: 0 | I142: 0 | J142: 0
A143: 20.8. | B143: - Строительство сетей уличного освещения микрорайона Южный
A144: 20.9. | B144: Всего: | C144: =SUM(C145) -> 14175 | D144: 0 | E144: 0 | F144: 12046.79934 | G144: 2128.20066 | H144: 0 | I144: 0 | J144: 0 | K144: стр.28
A145: 20.10. | B145: местный бюджет | C145: =SUM(D145:J145) -> 14175 | D145: 0 | E145: 0 | F145: 12046.79934 | G145: 2128.20066 | H145: 0 | I145: =SUM(H145) -> 0 | J145: =SUM(I145) -> 0
A146: 20.11. | B146: областной бюджет | C146: =SUM(D146:J146) -> 0 | D146: 0 | E146: 0 | F146: 0 | G146: 0 | H146: 0 | I146: 0 | J146: 0
A147: 21. | B147: Мероприятие 5 - Разработка, экспертиза проектно-сметной документации на строительство сетей водоснабжения в Североуральском городском округе
A148: 21.1. | B148: Всего, из них | C148: =SUM(D148:J148) -> 0 | D148: =SUM(D149) -> 0 | E148: =SUM(E149) -> 0 | F148: 0 | G148: 0 | H148: 0 | I148: 0 | J148: 0 | K148: Х
A149: 21.2. | B149: местный бюджет | C149: =SUM(D149:J149) -> 0 | D149: 0 | E149: 0 | F149: 0 | G149: 0 | H149: =SUM(G149) -> 0 | I149: =SUM(H149) -> 0 | J149: =SUM(I149) -> 0
A150: 22. | B150: Мероприятие 6 - Строительство сетей водоснабжения в Североуральском городском округе
A151: 22.1. | B151: Всего, из них | C151: =SUM(C152:C153) -> 0 | D151: =SUM(D152:D153) -> 0 | E151: =SUM(E152:E153) -> 0 | F151: 0 | G151: 0 | H151: 0 | I151: 0 | J151: 0 | K151: Х
A152: 22.2. | B152: местный бюджет | C152: =SUM(D152:J152) -> 0 | D152: 0 | E152: 0 | F152: 0 | G152: 0 | H152: =SUM(G152) -> 0 | I152: 0 | J152: 0
A153: 22.3. | B153: областной бюджет | C153: =SUM(D153:J153) -> 0 | D153: 0 | E153: 0 | F153: 0 | G153: 0 | H153: 0 | I153: 0 | J153: 0
A154: 23. | B154: Мероприятие 7 - Разработка, экспертиза проектно-сметной документации на строительство котельных в Североуральском городском округе
A155: 23.1. | B155: Всего, из них | C155: =SUM(D155:J155) -> 2468.75051 | D155: =SUM(D156) -> 0 | E155: =SUM(E156) -> 0 | F155: 1792.6092 | G155: 676.14131 | H155: 0 | I155: 0 | J155: 0 | K155: стр.33
A156: 23.2. | B156: местный бюджет | C156: =SUM(D156:J156) -> 2468.75051 | D156: 0 | E156: 0 | F156: 1792.6092 | G156: 676.14131 | H156: 0 | I156: =SUM(H156) -> 0 | J156: =SUM(I156) -> 0
A157: 24. | B157: Мероприятие 8 - Строительство котельных в Североуральском городском округе
A158: 24.1. | B158: Всего, из них | C158: =SUM(C159:C160) -> 0 | D158: =SUM(D159:D160) -> 0 | E158: =SUM(E159:E160) -> 0 | F158: 0 | G158: 0 | H158: 0 | I158: 0 | J158: 0 | K158: Х
A159: 24.2. | B159: местный бюджет | C159: =SUM(D159:J159) -> 0 | D159: 0 | E159: 0 | F159: 0 | G159: 0 | H159: 0 | I159: 0 | J159: =SUM(I159) -> 0
A160: 24.3. | B160: областной бюджет | C160: =SUM(D160:J160) -> 0 | D160: 0 | E160: 0 | F160: 0 | G160: 0 | H160: =SUM(G160) -> 0 | I160: =SUM(H160) -> 0 | J160: =SUM(I160) -> 0
A161: 25. | B161: 1.2. Иные капитальные вложения
A162: 25.1. | B162: Всего, в том числе | C162: =SUM(C163:C164) -> 5593.6 | D162: 4173.6 | E162: 1420 | F162: 0 | G162: 0 | H162: 0 | I162: 0 | J162: 0 | K162: Х
A163: 25.2. | B163: местный бюджет | C163: =SUM(D163:J163) -> 2249.2 | D163: =SUM(D171+D167) -> 829.2 | E163: =SUM(E171) -> 1420 | F163: 0 | G163: 0 | H163: 0 | I163: 0 | J163: 0
A164: 25.3. | B164: областной бюджет | C164: =SUM(D164:J164) -> 3344.4 | D164: =SUM(D172+D168) -> 3344.4 | E164: =SUM(E172) -> 0 | F164: 0 | G164: 0 | H164: 0 | I164: 0 | J164: 0
A165: 26. | B165: Мероприятие 1- Реконструкция, модернизация водопроводных сетей, сетей системы водоотведения с заменой (без замены) оборудования с более высоким КПД, установка регулируемого привода, реконструкция тепловых сетей, в том числе тепловых пунктов, котельных, капитальный ремонт систем коммунального хозяйства
A166: 26.1. | B166: Всего, в том числе: | C166: =SUM(C167:C168) -> 3037.4 | D166: 3037.4 | E166: 0 | F166: 0 | G166: 0 | H166: 0 | I166: 0 | J166: 0 | K166: стр.29
A167: 26.2. | B167: местный бюджет | C167: =SUM(D167:J167) -> 281 | D167: 281 | E167: 0 | F167: 0 | G167: 0 | H167: 0 | I167: 0 | J167: 0
A168: 26.3. | B168: областной бюджет | C168: =SUM(D168:J168) -> 2756.4 | D168: 2756.4 | E168: 0 | F168: 0 | G168: 0 | H168: =SUM(G168) -> 0 | I168: =SUM(H168) -> 0 | J168: =SUM(I168) -> 0
A169: 27. | B169: Мероприятие 3 - Закупка и установка осветительного оборудования с заменой неэффективного на энергосберегающее, в том числе замена ламп накаливания на энергосберегающие, строительство, модернизация сетей уличного освещения, проектно-сметные работы, экспертиза проектно-сметной документации
A170: 27.1. | B170: Всего, из них | C170: =SUM(C171:C172) -> 2556.2 | D170: =SUM(D171:D172) -> 1136.2 | E170: =SUM(E171:E172) -> 1420 | F170: 0 | G170: 0 | H170: 0 | I170: 0 | J170: 0 | K170: стр.28
A171: 27.2. | B171: местный бюджет | C171: =SUM(D171:J171) -> 1968.2 | D171: 548.2 | E171: 1420 | F171: 0 | G171: 0 | H171: 0 | I171: =SUM(H171) -> 0 | J171: 0
A172: 27.3. | B172: областной бюджет | C172: =SUM(D172:J172) -> 588 | D172: 588 | E172: 0 | F172: 0 | G172: 0 | H172: 0 | I172: 0 | J172: 0
A173: 28. | B173: 3. Прочие нужды
A174: 28.1. | B174: Всего по направлению «Прочие нужды», всего, в том числе: | C174: =SUM(D174:J174) -> 67017.75861 | D174: =SUM(D175:D176) -> 4991.9 | E174: =SUM(E175:E176) -> 1541.6 | F174: 1333.25861 | G174: 13600 | H174: 21775.5 | I174: 21775.5 | J174: 2000 | K174: Х
A175: 28.2. | B175: местный бюджет | C175: =SUM(D175:J175) -> 64017.75861 | D175: =SUM(D183+D188+D192+D195+D179) -> 1991.9 | E175: 1541.6 | F175: 1333.25861 | G175: 13600 | H175: 21775.5 | I175: 21775.5 | J175: 2000
A176: 28.3. | B176: областной бюджет | C176: =SUM(D176:J176) -> 3000 | D176: =SUM(D184+D189+D180) -> 3000 | E176: 0 | F176: 0 | G176: 0 | H176: 0 | I176: 0 | J176: 0
A177: 28.4. | B177: Мероприятие 1- Реконструкция, модернизация водопроводных сетей, сетей системы водоотведения с заменой (без замены) оборудования с более высоким КПД, установка регулируемого привода, реконструкция тепловых сетей, в том числе тепловых пунктов, котельных, капитальный ремонт систем коммунального хозяйства
A178: 28.5. | B178: Всего, в том числе: | C178: =SUM(C179:C180) -> 52551 | D178: 0 | E178: 0 | F178: 0 | G178: 13000 | H178: 19775.5 | I178: 19775.5 | J178: 0 | K178: стр.29
A179: 28.6. | B179: местный бюджет | C179: =SUM(D179:J179) -> 52551 | D179: 0 | E179: 0 | F179: 0 | G179: 13000 | H179: 19775.5 | I179: 19775.5 | J179: 0
A180: 28.7. | B180: областной бюджет | C180: =SUM(D180:J180) -> 0 | D180: 0 | E180: 0 | F180: 0 | G180: 0 | H180: =SUM(G180) -> 0 | I180: =SUM(H180) -> 0 | J180: =SUM(I180) -> 0
A181: 29. | B181: Мероприятие 2 - Оснащение зданий (строений, сооружений), находящихся в муниципальной собственности, многоквартирных жилых домов, жилых помещений, квартир приборами учета используемых энергетических ресурсов, в том числе разработка проектно-сметной документации
A182: 29.1. | B182: Всего, из них | C182: =SUM(D182:J182) -> 9977.55861 | D182: =SUM(D183:D184) -> 4200 | E182: 1100 | F182: 1250.40861 | G182: 427.15 | H182: 1000 | I182: 1000 | J182: 1000 | K182: стр.22,23,24,25,26
A183: 29.2. | B183: местный бюджет | C183: =SUM(D183:J183) -> 6977.55861 | D183: 1200 | E183: 1100 | F183: 1250.40861 | G183: 427.15 | H183: 1000 | I183: =SUM(H183) -> 1000 | J183: 1000
A184: 29.3. | B184: областной бюджет | C184: =SUM(D184:J184) -> 3000 | D184: 3000 | E184: =SUM(E185) -> 0 | F184: 0 | G184: 0 | H184: 0 | I184: 0 | J184: 0
A185: 29.4. | B185: федеральный бюджет | C185: =SUM(D185:J185) -> 0 | D185: 0 | E185: 0 | F185: 0 | G185: =SUM(F185) -> 0 | H185: =SUM(G185) -> 0 | I185: =SUM(H185) -> 0 | J185: =SUM(I185) -> 0
A186: 30. | B186: Мероприятие 3 - Закупка и установка осветительного оборудования с заменой неэффективного на энергосберегающее, в том числе замена ламп накаливания на энергосберегающие, строительство, модернизация сетей уличного освещения, проектно-сметные работы, экспертиза проектно-сметной документации
A187: 30.1. | B187: Всего, из них | C187: =SUM(C188:C189) -> 3591.9 | D187: =SUM(D188:D189) -> 411.9 | E187: =SUM(E188:E189) -> 180 | F187: 0 | G187: 0 | H187: 1000 | I187: 1000 | J187: 1000 | K187: стр.28
A188: 30.2. | B188: местный бюджет | C188: =SUM(D188:J188) -> 3591.9 | D188: 411.9 | E188: 180 | F188: 0 | G188: 0 | H188: 1000 | I188: =SUM(H188) -> 1000 | J188: 1000
A189: 30.3. | B189: областной бюджет | C189: =SUM(D189:J189) -> 0 | D189: 0 | E189: 0 | F189: 0 | G189: 0 | H189: 0 | I189: 0 | J189: 0
A190: 31. | B190: Мероприятие 4- Разработка схемы водоснабжения Североуральского городского округа
A191: 31.1. | B191: Всего, из них | C191: =SUM(D191:J191) -> 380 | D191: =SUM(D192) -> 380 | E191: =SUM(E192) -> 0 | F191: 0 | G191: 0 | H191: 0 | I191: 0 | J191: 0 | K191: стр.30
A192: 31.2. | B192: местный бюджет | C192: =SUM(D192:J192) -> 380 | D192: 380 | E192: 0 | F192: 0 | G192: =SUM(F192) -> 0 | H192: =SUM(G192) -> 0 | I192: =SUM(H192) -> 0 | J192: =SUM(I192) -> 0
A193: 32. | B193: Мероприятие 9- Прочие мероприятия в области энергосбережения (разработка технических заданий, топливно-энерготехнического баланса и т.п.)
A194: 32.1. | B194: Всего, из них | C194: =SUM(D194:J194) -> 517.3 | D194: =SUM(D195) -> 0 | E194: =SUM(E195) -> 261.6 | F194: 82.85 | G194: 172.85 | H194: 0 | I194: 0 | J194: 0 | K194: стр.35,36
A195: 32.2. | B195: местный бюджет | C195: =SUM(D195:J195) -> 517.3 | D195: 0 | E195: 261.6 | F195: 82.85 | G195: 172.85 | H195: 0 | I195: =SUM(H195) -> 0 | J195: =SUM(I195) -> 0
A196: 35. | B196: Подпрограмма 3: Развитие лесного хозяйства на территории Североуральского городского округа
A197: 35.1. | B197: Всего по подпрограмме 1, всего, в том числе | C197: =SUM(C198:C198) -> 3155.2 | D197: =SUM(D198) -> 774.1 | E197: =SUM(E198) -> 881.1 | F197: 0 | G197: 0 | H197: 500 | I197: 500 | J197: 500 | K197: Х
A198: 35.2 | B198: местный бюджет | C198: =SUM(D198:J198) -> 3155.2 | D198: =SUM(D210) -> 774.1 | E198: =SUM(E210) -> 881.1 | F198: 0 | G198: 0 | H198: 500 | I198: 500 | J198: 500
A199: 36. | B199: 1. Капитальные вложения
A200: 36.1. | B200: Всего по направлению «Капитальные вложения», всего, в том числе | C200: 0 | D200: 0 | E200: 0 | F200: 0 | G200: 0 | H200: 0 | I200: 0 | J200: 0 | K200: Х
A201: 36.2. | B201: местный бюджет | C201: 0 | D201: 0 | E201: 0 | F201: 0 | G201: 0 | H201: 0 | I201: 0 | J201: 0
... 263 more rows

Sheet Лист2

Sheet Лист3
